Cogmind - Beta 13 @@@ ROGUE MODE // 2024.06.13 @ 15:16:19 Player: QXander Result: Destroyed by S-10 Pest with Light Assault Rifle Performance ------------- Evolutions (0) 0 Regions Visited (2) 400 Robots Destroyed (14) 70 Value Destroyed (298) 298 Prototype IDs (0) 0 Alien Tech Used (0) 0 Bonus (0) 0 TOTAL SCORE: 768 Bonus ------- None Cogmind --------- Core Integrity 0/250 Matter 113/300 Energy 384/400 System Corruption 0% Temperature Cool (0) Movement Walking (125) Location -10/Mines Parts ------- > --- POWER (1) -------- Ion Engine > --- PROPULSION (2) --- Aluminum Leg Titanium Leg > --- UTILITY (2) ------ Small Storage Unit Medium Battery > --- WEAPON (2) ------- Field Laser Light Assault Rifle > --- INVENTORY (8) ---- Aluminum Leg Aluminum Leg Aluminum Leg Heat Sink Medium Matter Pod (0) Improved Terrain Scanner Hardlight Generator Peak State ------------ > --- POWER ------------ Light Ion Engine > --- PROPULSION ------- Aluminum Leg Titanium Leg > --- UTILITY ---------- Small Storage Unit Improved Trap Extractor > --- WEAPON ----------- Ion Cannon Light Assault Rifle > --- INVENTORY -------- Ion Engine Aluminum Leg Aluminum Leg Aluminum Leg Heat Sink Medium Battery Medium Matter Pod Hardlight Generator [Rating: 15] Favorites ----------- Power Ion Engine Engine Ion Engine Propulsion Aluminum Leg Leg Aluminum Leg Wheel Wheel Utility Small Storage Unit Device Improved Trap Extractor Storage Small Storage Unit Protection Power Shielding Weapon Light Assault Rifle Energy Gun Small Laser Energy Cannon Ion Cannon Ballistic Gun Light Assault Rifle Ballistic Cannon Light Cannon Build | -11 -10 -10 ------- Run | Yrd Mat Min Slots Evolved . | . . . Power . | . . . Propulsion . | . . . Utility . | . . . Weapon . | . . . Parts Attached 32 | 9 3 20 Power 6 | 1 . 5 Engine 6 | 1 . 5 Core . | . . . Reactor . | . . . Propulsion 9 | 4 . 5 Treads . | . . . Leg 7 | 2 . 5 Wheel 2 | 2 . . Hover . | . . . Flight . | . . . Utility 7 | 1 1 5 Device 2 | . . 2 Storage 4 | 1 . 3 Processor . | . . . Hackware . | . . . Protection 1 | . 1 . Artifact . | . . . Weapon 10 | 3 2 5 Energy Gun 2 | 1 . 1 Energy Cannon 1 | . . 1 Ballistic Gun 6 | 2 1 3 Ballistic Cannon 1 | . 1 . Launcher . | . . . Special Weapon . | . . . Impact Weapon . | . . . Slashing Weapon . | . . . Piercing Weapon . | . . . Special Melee Weapon . | . . . Unidentified Prototypes . | . . . Parts Lost 2 | . . 2 Power 1 | . . 1 Propulsion . | . . . Utility . | . . . Weapon 1 | . . 1 Highest Loss Streak 1 | . . 1 To Critical Strikes . | . . . Average Slot Usage (%) 98 | . 97 98 Engine 14 | . 14 14 Leg 28 | . 28 28 Storage 19 | . 14 23 Protection 6 | . 12 2 Energy Gun 1 | . 1 1 Energy Cannon 1 | . . 2 Ballistic Gun 18 | . 21 17 Ballistic Cannon 6 | . 5 6 Naked Turns . | . . . Heaviest Build 19 | 13 16 19 Greatest Support 27 | 26 20 27 Greatest Overweight (x) . | . . . Average Overweight (x) . | . . . Largest Inventory Capacity 8 | 8 8 8 Average Capacity 7 | 7 8 8 Most Carried 8 | 5 8 8 Average Carried 5 | 1 4 7 Final Capacity 8 | 8 8 8 Final Carried 8 | 2 8 7 Class Distribution -------------------- 100% | Mutant Dominant Class ---------------- Mutant | -10/Materials Mutant | -10/Mines Resources | -11 -10 -10 ----------- Run | Yrd Mat Min Matter Collected 509 | 210 85 214 Remotely . | . . . Salvage Created 251 | . 78 173 Parts 19 | . 6 13 Haulers Intercepted . | . . . Recyclers Shooed . | . . . Parts Field Recycled . | . . . Retrieved Matter . | . . . Parts Self-Destructed . | . . . Prevented . | . . . Kills | -11 -10 -10 ------- Run | Yrd Mat Min Combat Hostiles Destroyed 14 | . 4 10 Guns 8 | . 2 6 Cannons 6 | . 2 4 Classes Destroyed 3 | . 2 1 Swarmer 10 | . 3 7 Grunt 3 | . 1 2 Demolisher 1 | . . 1 Best Kill Streak 3 | . 3 3 Combat Bots Only 3 | . 3 3 Max Kills in Single Turn 1 | . 1 1 Gunslinging . | . . . Exploded . | . . . Melee . | . . . Uniques/NPCs Destroyed . | . . . Combat | -11 -10 -10 -------- Run | Yrd Mat Min Hostile Shots Fired 92 | . 20 72 Missed 25 | . 6 19 Damage Taken 900 | . 123 777 Core 251 | . 27 224 Absorbed by Shields . | . . . Redirected to Shielding 12 | . 3 9 Core Remaining (%) 100 | 100 . . Volleys Fired 49 | . 14 35 Largest 2 | . 2 2 Hottest 83 | . 60 83 Shots Fired 98 | . 28 70 Gun 62 | . 22 40 Cannon 36 | . 6 30 Launcher . | . . . Special . | . . . Kinetic 83 | . 25 58 Thermal 15 | . 3 12 Explosive . | . . . Electromagnetic . | . . . Robot Hit Streak 8 | . 3 8 Robot Miss Streak 6 | . 5 6 Penetration Max . | . . . Secondary Targets . | . . . Shots Hit Robots 45 | . 11 34 Core Hits 23 | . 6 17 Critical Kills . | . . . Critical Parts Destroyed . | . . . Critical Strikes 1 | . 1 . Blast 1 | . 1 . Melee Attacks . | . . . Impact . | . . . Slashing . | . . . Piercing . | . . . Sneak Attacks . | . . . Combat Hostiles . | . . . Follow-up Attacks . | . . . Damage Inflicted 586 | . 156 430 Guns 269 | . 96 173 Cannons 317 | . 60 257 Explosions . | . . . Melee . | . . . Ramming . | . . . Kinetic 504 | . 144 360 Thermal 82 | . 12 70 Explosive . | . . . Electromagnetic . | . . . Impact . | . . . Slashing . | . . . Piercing . | . . . Highest Corruption . | . . . Average Corruption . | . . . Corruption Purged . | . . . Corruption Blocked . | . . . Overload Shots . | . . . Overflow Damage . | . . . Projectiles . | . . . Explosions . | . . . Melee . | . . . Knockbacks 4 | . . 4 Impact . | . . . Kinetic 4 | . . 4 Secondary . | . . . Self-Inflicted Damage . | . . . Shots . | . . . Rammed . | . . . Targets Rammed . | . . . Kicked . | . . . Crushed . | . . . Highest Temperature 363 | . 12 363 Average Temperature 85 | . 9 88 Received Heat Transfer 301 | . 18 283 Effects 2 | . . 2 Interference 1 | . . 1 Short Circuit 1 | . . 1 Siege Activations . | . . . Robots Corrupted . | . . . Combat Hostiles . | . . . Parts Fried . | . . . Impact Corruptions . | . . . Robots Melted . | . . . Combat Hostiles . | . . . Parts Melted . | . . . Heat Transferred 136 | . 25 111 Parts Sabotaged . | . . . Parts Stolen . | . . . Parts Stripped . | . . . Power Chain Reactions . | . . . Alert | -11 -10 -10 ------- Run | Yrd Mat Min Peak Influence 267 | . 149 267 Initial 57 | . . 57 Average 119 | . 73 172 Maximum Alert Level 1 | . . 1 Low Security (%) 70 | 100 100 45 Level 1 29 | . . 54 Level 2 . | . . . Level 3 . | . . . Level 4 . | . . . Level 5 . | . . . High Security . | . . . Max Security . | . . . Squads Dispatched 1 | . 1 . Investigation . | . . . Extermination . | . . . Reinforcement 1 | . 1 . Assault . | . . . Garrison . | . . . Intercept . | . . . Searches Triggered . | . . . Construction Impeded . | . . . Haulers Reinforced . | . . . Active Scanning Responses . | . . . Cargo Convoy Interrupts . | . . . Stealth | -11 -10 -10 --------- Run | Yrd Mat Min Distress Signals . | . . . Communications Jammed . | . . . Distress Signals . | . . . Times Spotted 28 | . 6 22 Peak Tracking Total 10 | . 3 10 Tactical Retreats 2 | . . 2 Traps | -11 -10 -10 ------- Run | Yrd Mat Min Traps Triggered 2 | . . 2 Indirectly . | . . . Trap Hack Attempts . | . . . Triggered . | . . . Disarmed . | . . . Reprogrammed . | . . . Reused . | . . . Traps Extracted . | . . . Installed . | . . . Triggered . | . . . Machines | -11 -10 -10 ---------- Run | Yrd Mat Min Machines Disabled 3 | . 1 2 Max in Single Turn 1 | . 1 1 Machines Repaired . | . . . Machines Dismantled . | . . . Machines Sabotaged . | . . . Overloaded Fab Kills . | . . . Hacking | -11 -10 -10 --------- Run | Yrd Mat Min Machines Accessed 4 | . 3 1 Terminals 1 | . 1 . Fabricators . | . . . Repair Stations . | . . . Recycling Units 2 | . 2 . Scanalyzers . | . . . Garrison Access . | . . . Total Hacks 8 | . 7 1 Successful 6 | . 5 1 Failed 2 | . 2 . Catastrophic . | . . . Database Lockouts . | . . . Manual . | . . . Terminals 2 | . 2 . Fabricators . | . . . Repair Stations . | . . . Recycling Units 5 | . 5 . Scanalyzers . | . . . Garrison Access . | . . . Terminal Hacks 3 | . 2 1 Open Door 1 | . . 1 Dispatch Records 1 | . 1 . Zone Layout 1 | . 1 . Fabricator Hacks . | . . . Repair Station Hacks . | . . . Recycling Unit Hacks 3 | . 3 . Report Inventory 2 | . 2 . Retrieve Components 1 | . 1 . Scanalyzer . | . . . Garrison Access Hacks . | . . . Unauthorized Hacks . | . . . Terminals . | . . . Fabricators . | . . . Repair Stations . | . . . Recycling Units . | . . . Scanalyzers . | . . . Garrison Access . | . . . Data Cores Recovered . | . . . Used . | . . . Hacking Detections 3 | . 3 . Full Trace Events . | . . . Feedback Events . | . . . Feedback Blocked . | . . . Robot Schematics Acquired . | . . . Robots Built . | . . . Authchips . | . . . Time . | . . . Total Robot Build Rating . | . . . Part Schematics Acquired . | . . . Parts Built . | . . . Authchips . | . . . Time . | . . . Total Part Build Rating . | . . . Parts Repaired . | . . . Time . | . . . Parts Recycled . | . . . Recycled Matter . | . . . Retrieved Matter . | . . . Retrieved Components 1 | . 1 . Parts Scanalyzed . | . . . Part Schematics Acquired . | . . . Parts Damaged . | . . . Bothacking | -11 -10 -10 ------------ Run | Yrd Mat Min Used RIF Installer . | . . . Robots Hacked . | . . . Non-combat . | . . . Combat . | . . . Robot Hacks Applied . | . . . Relay Couplers Released . | . . . Fabnet Peak Effective % . | . . . Robots Rewired . | . . . Allies Hacked . | . . . Hacks Repelled . | . . . Allies | -11 -10 -10 -------- Run | Yrd Mat Min Total Allies . | . . . Largest Group . | . . . Highest-Rated Group . | . . . Highest-Rated Ally . | . . . Total Orders . | . . . Ally Attacks . | . . . Total Damage . | . . . Kills . | . . . Allies Corrupted . | . . . Allies Melted . | . . . Intel | -11 -10 -10 ------- Run | Yrd Mat Min Robot Analysis Total . | . . . Derelict Logs Recovered 2 | . . 2 Drone Launches . | . . . Drone Recoveries . | . . . Exploration | -11 -10 -10 ------------- Run | Yrd Mat Min Turns Passed 1071 | 123 364 584 Spaces Moved 701 | 102 249 350 Core 20 | 20 . . Treads . | . . . Legs 659 | 60 249 350 Wheels 22 | 22 . . Hover . | . . . Flight . | . . . Fastest Speed 50 | 50 120 120 Average Speed 117 | 99 120 121 Slowest Speed 125 | 120 120 125 Overloaded Moves . | . . . Propulsion Burnouts . | . . . Robots Hopped . | . . . Cave-ins Triggered . | . . . Exploration Rate (%) 29 | 6 41 42 Regions Visited 2 Branch Regions 1 Pre-discovered Areas . | . . . Known Exits Taken . | . . . Unknown Exits Taken 2 | 1 1 . Scrap Searched . | . . . Spaces Dug . | . . . Terrain Destroyed 6 | . . 6 Melee . | . . . Projectile 6 | . . 6 AOE . | . . . Terrain Rammed . | . . . Walls Destroyed . | . . . Machines Disabled . | . . . Actions | -11 -10 -10 --------- Run | Yrd Mat Min Total 866 | 125 289 452 Wait 33 | . 9 24 Move 699 | 101 248 350 Hop . | . . . Pick Up 31 | 10 10 11 Fast Attach . | . . . Attach 25 | 9 3 13 Detach 10 | 3 2 5 Swap 7 | . . 7 Drop 12 | 2 3 7 Fire 49 | . 14 35 Melee . | . . . Ram . | . . . Kick . | . . . Crush . | . . . Escape Stasis . | . . . Rewire . | . . . Trap . | . . . Miscellaneous . | . . . Route ------- -11/Scrapyard -10/Materials -10/Mines History --------- Turn | Location | Event 15 | -11/Scrapyard | Discovered new exit (range 16) 124 | -11/Scrapyard | Entered Materials 300 | -10/Materials | Discovered new exit (range 14) 314 | -10/Materials | Build established: Mutant 488 | -10/Materials | Entered Mines 790 | -10/Mines | Learned 4 Materials zone layouts 872 | -10/Mines | Assembled infested the area 877 | -10/Mines | Assisted by a Guerilla fighting off Assembled 886 | -10/Mines | Learned Materials emergency access door positions 888 | -10/Mines | Met a Derelict who couldn't figure out how to use a Trap Extractor 945 | -10/Mines | Core integrity fell below 50% 956 | -10/Mines | Core integrity fell below 20% 1072 | -10/Mines | Destroyed by S-10 Pest with Light Assault Rifle Last Messages --------------- Destroyed Asb. F-torch. Ion Cannon broken. Overheating: Short circuit. The unstable cave ceiling collapses. Overheating: System interference. Lgt. Assault Rifle temporarily disabled. Acquired Field Laser. The unstable cave ceiling collapses. Acquired 2 matter. Acquired 9 matter. Acquired 8 matter. The unstable cave ceiling collapses. Acquired 11 matter. Acquired 1 matter. U-05 Engineer builds a Wall. Acquired 13 matter. The unstable cave ceiling collapses. Dropped Broken Ion Cannon. Acquired Imp. Terrain Scanner. S-10 Pest destroyed. Map ----- +----------------------------------------------------+ | | | | | | | | | | | | | | | | | | | | | ?????????????????????????????????????????????????? | | ?????????????????????????????????????????????????? | | ?????????????????????????????????????????????????? | | ?????????????????????????????????????????????????? | | ?????????????????????????????????????????????????? | | ?????????????????????????????????#####???????????? | | ??????????????????????????????#### ####????????? | | ??????????????????????????????# # #????????? | | ??????????????????????????????# [ ] # #????????? | | ??????????????????????????????# # #????????? | | ??????????????????????#####???# # ##???????? | | ??????????????????????# = #?#### ### #???????? | | ?????????????????????###]!### ##??????? | | ?????????????????????# # ## ##?????? | | ??????????????????????#; #?????? | | ????????????????## # # @ #?????? | | ????????????????# #$ ##?????? | | ??????????????# # ## ###??????? | | ??????????????## = s% ! ## ##????????? | | ?????????????# # r # #### #?????????? | | ????????????# ### # # ## #??# #?????????? | | ?????????????????# ## # ##??## ##?????????? | | ???????????????? ? # # ##????####??????????? | | ??????????????# ?## #### #???????????????????? | | ??????????????# ??# ###???# #???????????####????? | | ??????????????#??? # ??##### #??????????## #????? | | ?????????????????# ##### ## ###???????## ##???? | | ????????????????? ??# ######### ##??? | | ???????????????????# #??? | | ???????????????????# ####!## #??? | | ???????????????????## ## ##??# ### ##??? | | ????????????????????###?## ####???# #?#### ##???? | | ?????????????????????????####??????# #????# #????? | | ???????????????????????????????????# ##???# #????? | | ??????????????????????????????????## ##### #????? | | ??????????????????????????????????# #????? | | ??????????????????????????????????# ### ##????? | | ??????????????????????????????????# !#??# #?????? | | ?????????????????????????????????## #### #?????? | | ?????????????????????????????????# [ #?????? | +----------------------------------------------------+ Best States ------------- Heat Dissipation 25 Energy Generation 10 Energy Capacity 400 Matter Stores 231 Matter Capacity 400 Sight Range 16 Terrain Scan Density 10 Power Shielding 33 Evasion (%) 55 Trap Extractor Capacity 6 Item Schematics ----------------- None Robot Schematics ------------------ None Fabricated ------------ Nothing Alien Tech Used ----------------- None Achievements -------------- Slippery One Challenges ------------ None Game ------ Seed CoolingIonStabilizer Manual? 0 Play Time 00:19:27 Cumulative 5.0 hours Start 2024.06.13 @ 14:56:11 End 2024.06.13 @ 15:16:19 Sessions 1 Manual Loads 0 Difficulty Rogue Special Mode None Game No. 7 Rogue 7 Adventurer 0 Explorer 0 Win Type - Total 0 Types 0/0/0/0/0/0/0/0/0 Lore% 13 Gallery% 10 Achievement% 10 Wizard Run 0 Options --------- Layout 1 ASCII 0 Keyboard 1 Movement Arrows Keybinds 0 Fullscreen 1 Font 24/Smallcaps Map View 50x35 Zoom Use 0% Tactical HUD 0 Map Filters NONE Filters NONE Steam 1 RUN: 1530bc65-abea-4fc2-acb5-b27d597ef121